[Event "Early-Titled-Tuesday-Blitz-November-28-2023"]
[Site "Chess.com"]
[Date "2023.11.28"]
[Round "5"]
[White "baki83"]
[Black "Vesper2018"]
[Result "1-0"]
[WhiteElo "2818"]
[BlackElo "2613"]
[TimeControl "180+1"]
[EndTime "8:58:25 PST"]
[Termination "baki83 won on time"]

1. e4 {[%clk 0:02:57.4]} 1... c5 {[%clk 0:03:00]} 2. Nf3 {[%clk 0:02:57.2]} 2...
d6 {[%clk 0:03:00]} 3. Bb5+ {[%clk 0:02:56.7]} 3... Bd7 {[%clk 0:02:59.1]} 4.
Bxd7+ {[%clk 0:02:55.6]} 4... Qxd7 {[%clk 0:02:58.4]} 5. O-O {[%clk 0:02:55.5]}
5... Nf6 {[%clk 0:02:57.1]} 6. Re1 {[%clk 0:02:54.9]} 6... Nc6 {[%clk
0:02:56.9]} 7. c3 {[%clk 0:02:52.5]} 7... e6 {[%clk 0:02:57.2]} 8. d4 {[%clk
0:02:52.1]} 8... cxd4 {[%clk 0:02:57.1]} 9. cxd4 {[%clk 0:02:52]} 9... d5 {[%clk
0:02:57.7]} 10. e5 {[%clk 0:02:52.3]} 10... Ne4 {[%clk 0:02:57.7]} 11. Nbd2
{[%clk 0:02:52.4]} 11... Nxd2 {[%clk 0:02:58]} 12. Bxd2 {[%clk 0:02:52.8]} 12...
Be7 {[%clk 0:02:58.7]} 13. Re3 {[%clk 0:02:52.6]} 13... O-O {[%clk 0:02:58.3]}
14. Bc3 {[%clk 0:02:51.2]} 14... f6 {[%clk 0:02:55.8]} 15. exf6 {[%clk
0:02:47.3]} 15... Rxf6 {[%clk 0:02:55.6]} 16. Qe2 {[%clk 0:02:47.1]} 16... Bd6
{[%clk 0:02:47.7]} 17. Re1 {[%clk 0:02:29.8]} 17... Re8 {[%clk 0:02:45.6]} 18.
g3 {[%clk 0:02:22.4]} 18... Ref8 {[%clk 0:02:39.9]} 19. Ng5 {[%clk 0:01:42]}
19... Rxf2 {[%clk 0:02:11.5]} 20. Qd3 {[%clk 0:01:41.2]} 20... g6 {[%clk
0:01:44.1]} 21. Rxe6 {[%clk 0:01:08.4]} 21... R2f6 {[%clk 0:01:33.2]} 22. Qb5
{[%clk 0:00:52.8]} 22... Rf5 {[%clk 0:01:25]} 23. Bd2 {[%clk 0:00:37.9]} 23...
Qc7 {[%clk 0:01:09.1]} 24. Rxd6 {[%clk 0:00:07.7]} 24... Qxd6 {[%clk 0:01:04.9]}
25. Qxb7 {[%clk 0:00:07.8]} 25... Rxg5 {[%clk 0:00:46]} 26. Bxg5 {[%clk
0:00:08.7]} 26... Nxd4 {[%clk 0:00:46.5]} 27. Bh6 {[%clk 0:00:09]} 27... Nf3+
{[%clk 0:00:24.8]} 28. Kh1 {[%clk 0:00:08.9]} 28... Qf6 {[%clk 0:00:22.4]} 29.
Qxd5+ {[%clk 0:00:08.7]} 29... Kh8 {[%clk 0:00:13.6]} 30. Rf1 {[%clk 0:00:04.2]}
30... Qf5 {[%clk 0:00:07.6]} 31. Qxf5 {[%clk 0:00:04]} 31... Rxf5 {[%clk
0:00:07.4]} 32. Be3 {[%clk 0:00:04.1]} 32... a5 {[%clk 0:00:06.3]} 33. b3 {[%clk
0:00:04.4]} 33... g5 {[%clk 0:00:03.4]} 34. Kg2 {[%clk 0:00:04.7]} 34... g4
{[%clk 0:00:03.4]} 35. h3 {[%clk 0:00:05.3]} 35... h5 {[%clk 0:00:03.5]} 36.
hxg4 {[%clk 0:00:05.9]} 36... hxg4 {[%clk 0:00:04.1]} 37. Rc1 {[%clk 0:00:05.8]}
37... Kg7 {[%clk 0:00:02.9]} 38. Rc4 {[%clk 0:00:05.7]} 38... Kf6 {[%clk
0:00:02.2]} 39. Rxg4 {[%clk 0:00:05.4]} 39... Ne1+ {[%clk 0:00:02.5]} 40. Kh3
{[%clk 0:00:05]} 40... Nd3 {[%clk 0:00:02.8]} 41. Bd4+ {[%clk 0:00:05.1]} 41...
Ke6 {[%clk 0:00:02.9]} 42. Be3 {[%clk 0:00:05.2]} 42... Ne1 {[%clk 0:00:01.8]}
43. Rg6+ {[%clk 0:00:04.5]} 43... Kd5 {[%clk 0:00:01.8]} 44. Rg5 {[%clk
0:00:05]} 44... Rxg5 {[%clk 0:00:01.2]} 45. Bxg5 {[%clk 0:00:05.7]} 45... Ke4
{[%clk 0:00:01.3]} 46. Bd2 {[%clk 0:00:05.6]} 1-0

[Event "Early-Titled-Tuesday-Blitz-November-28-2023"]
[Site "Chess.com"]
[Date "2023.11.28"]
[Round "5"]
[White "Aguiar94"]
[Black "defenceboy"]
[Result "0-1"]
[WhiteElo "2634"]
[BlackElo "2876"]
[TimeControl "180+1"]
[EndTime "8:58:28 PST"]
[Termination "defenceboy won on time"]

1. e4 {[%clk 0:03:00]} 1... e5 {[%clk 0:02:59.6]} 2. Nf3 {[%clk 0:02:59]} 2...
Nc6 {[%clk 0:03:00.1]} 3. Nc3 {[%clk 0:02:58.9]} 3... Nf6 {[%clk 0:02:59.3]} 4.
Bb5 {[%clk 0:02:59.2]} 4... Bb4 {[%clk 0:02:58.5]} 5. O-O {[%clk 0:02:59.1]}
5... O-O {[%clk 0:02:55.6]} 6. d3 {[%clk 0:02:59.2]} 6... Bxc3 {[%clk
0:02:56.1]} 7. bxc3 {[%clk 0:03:00.1]} 7... d6 {[%clk 0:02:56.8]} 8. Bg5 {[%clk
0:03:00.4]} 8... Bd7 {[%clk 0:02:56.4]} 9. a4 {[%clk 0:02:53.4]} 9... a6 {[%clk
0:02:48.4]} 10. Bc4 {[%clk 0:02:53.4]} 10... Be6 {[%clk 0:02:48.5]} 11. Bb3
{[%clk 0:02:44.6]} 11... Bxb3 {[%clk 0:02:40.3]} 12. cxb3 {[%clk 0:02:45.5]}
12... Qe7 {[%clk 0:02:41.2]} 13. Re1 {[%clk 0:02:43.4]} 13... Nd8 {[%clk
0:02:37.6]} 14. d4 {[%clk 0:02:39]} 14... Ne6 {[%clk 0:02:33.7]} 15. Bd2 {[%clk
0:02:21.6]} 15... Rad8 {[%clk 0:02:24.9]} 16. Qc2 {[%clk 0:01:58.2]} 16... Nd7
{[%clk 0:02:17]} 17. g3 {[%clk 0:01:46.7]} 17... h6 {[%clk 0:02:14.2]} 18. d5
{[%clk 0:01:26.7]} 18... Ng5 {[%clk 0:02:07.3]} 19. Bxg5 {[%clk 0:01:19.1]}
19... hxg5 {[%clk 0:02:07.2]} 20. Qd2 {[%clk 0:01:19.5]} 20... f6 {[%clk
0:01:57]} 21. b4 {[%clk 0:01:14.7]} 21... Qf7 {[%clk 0:01:49.1]} 22. c4 {[%clk
0:01:12.2]} 22... Qh5 {[%clk 0:01:49.2]} 23. Kg2 {[%clk 0:01:12]} 23... Rf7
{[%clk 0:01:41.7]} 24. Rac1 {[%clk 0:00:59.3]} 24... Nf8 {[%clk 0:01:41.7]} 25.
c5 {[%clk 0:00:57.2]} 25... Ng6 {[%clk 0:01:41.4]} 26. Qe2 {[%clk 0:00:55.1]}
26... g4 {[%clk 0:01:24]} 27. Nd2 {[%clk 0:00:51.1]} 27... Rdf8 {[%clk
0:01:24.6]} 28. f3 {[%clk 0:00:47.1]} 28... f5 {[%clk 0:01:00.5]} 29. fxg4
{[%clk 0:00:47]} 29... fxg4 {[%clk 0:01:00.9]} 30. Rf1 {[%clk 0:00:47.5]} 30...
Nf4+ {[%clk 0:01:01.2]} 31. gxf4 {[%clk 0:00:46.9]} 31... exf4 {[%clk
0:01:02.1]} 32. Kg1 {[%clk 0:00:45.1]} 32... Rf6 {[%clk 0:00:56.7]} 33. cxd6
{[%clk 0:00:42.1]} 33... cxd6 {[%clk 0:00:56.6]} 34. Rc7 {[%clk 0:00:40.1]}
34... Qh4 {[%clk 0:00:51.1]} 35. Qf2 {[%clk 0:00:24.6]} 35... Qh3 {[%clk
0:00:48.8]} 36. Kh1 {[%clk 0:00:20.3]} 36... Rh6 {[%clk 0:00:43.1]} 37. Qg2
{[%clk 0:00:20.6]} 37... Qh4 {[%clk 0:00:36.4]} 38. Rg1 {[%clk 0:00:14.3]} 38...
f3 {[%clk 0:00:31.6]} 39. Qg3 {[%clk 0:00:13.9]} 39... f2 {[%clk 0:00:31.3]} 40.
Qxh4 {[%clk 0:00:04.7]} 40... fxg1=Q+ {[%clk 0:00:30.3]} 41. Kxg1 {[%clk
0:00:05.6]} 41... Rxh4 {[%clk 0:00:31]} 42. Kg2 {[%clk 0:00:06.2]} 42... Rh3
{[%clk 0:00:29.3]} 43. Rxb7 {[%clk 0:00:06]} 43... Rc3 {[%clk 0:00:27.2]} 44.
Nf1 {[%clk 0:00:05.4]} 44... Rc2+ {[%clk 0:00:24.7]} 45. Kg3 {[%clk 0:00:03.1]}
45... Rxf1 {[%clk 0:00:24.4]} 46. Kxg4 {[%clk 0:00:03.3]} 46... Rxh2 {[%clk
0:00:17.6]} 0-1

[Event "Early-Titled-Tuesday-Blitz-November-28-2023"]
[Site "Chess.com"]
[Date "2023.11.28"]
[Round "5"]
[White "chess_blitz00"]
[Black "KVAIDAN"]
[Result "0-1"]
[WhiteElo "2492"]
[BlackElo "2362"]
[TimeControl "180+1"]
[EndTime "8:58:28 PST"]
[Termination "KVAIDAN won on time"]

1. d4 {[%clk 0:02:26]} 1... e6 {[%clk 0:02:59.3]} 2. b3 {[%clk 0:02:24.7]} 2...
f5 {[%clk 0:02:59.6]} 3. Bb2 {[%clk 0:02:25.2]} 3... Nf6 {[%clk 0:03:00.2]} 4.
g3 {[%clk 0:02:25.1]} 4... Be7 {[%clk 0:03:00.6]} 5. Bg2 {[%clk 0:02:25.8]} 5...
O-O {[%clk 0:03:01]} 6. Nd2 {[%clk 0:02:26]} 6... d5 {[%clk 0:03:00.5]} 7. Ngf3
{[%clk 0:02:25.4]} 7... Nbd7 {[%clk 0:02:54.4]} 8. O-O {[%clk 0:02:25.6]} 8...
b6 {[%clk 0:02:55]} 9. c4 {[%clk 0:02:25.7]} 9... c6 {[%clk 0:02:54.9]} 10. Ne5
{[%clk 0:02:25.3]} 10... Nxe5 {[%clk 0:02:49.2]} 11. dxe5 {[%clk 0:02:25.3]}
11... Nd7 {[%clk 0:02:48.9]} 12. f4 {[%clk 0:02:23.3]} 12... Ba6 {[%clk
0:02:48.3]} 13. Rc1 {[%clk 0:02:19.4]} 13... Rc8 {[%clk 0:02:48.2]} 14. Nf3
{[%clk 0:02:16.6]} 14... Bc5+ {[%clk 0:02:24.8]} 15. Kh1 {[%clk 0:02:13.3]}
15... Qe7 {[%clk 0:02:25.1]} 16. Qd2 {[%clk 0:02:10.8]} 16... Rfd8 {[%clk
0:02:22.4]} 17. cxd5 {[%clk 0:02:09]} 17... cxd5 {[%clk 0:02:19.2]} 18. Nd4
{[%clk 0:02:02.7]} 18... Bxd4 {[%clk 0:02:10.1]} 19. Bxd4 {[%clk 0:02:02.6]}
19... Nc5 {[%clk 0:02:10.7]} 20. Rc3 {[%clk 0:01:52]} 20... Ne4 {[%clk
0:02:07.6]} 21. Bxe4 {[%clk 0:01:52.4]} 21... dxe4 {[%clk 0:02:06.4]} 22. Rfc1
{[%clk 0:01:52.8]} 22... Rxc3 {[%clk 0:02:03]} 23. Rxc3 {[%clk 0:01:44]} 23...
Bxe2 {[%clk 0:01:55.7]} 24. Qxe2 {[%clk 0:01:09.7]} 24... Rxd4 {[%clk
0:01:54.2]} 25. Qc2 {[%clk 0:01:05.9]} 25... Qd7 {[%clk 0:01:35.3]} 26. Rc8+
{[%clk 0:01:01.1]} 26... Kf7 {[%clk 0:01:35.3]} 27. Rc7 {[%clk 0:00:07]} 27...
Rd1+ {[%clk 0:01:34.7]} 28. Qxd1 {[%clk 0:00:03.6]} 28... Qxc7 {[%clk
0:01:34.1]} 29. Qh5+ {[%clk 0:00:04.3]} 29... Kf8 {[%clk 0:01:20.1]} 30. Qxh7
{[%clk 0:00:04]} 30... e3 {[%clk 0:01:19.8]} 31. Qh8+ {[%clk 0:00:04]} 31... Kf7
{[%clk 0:01:18.7]} 32. Qh5+ {[%clk 0:00:04.3]} 32... Ke7 {[%clk 0:01:18.2]} 33.
Qe2 {[%clk 0:00:04.2]} 33... Qc6+ {[%clk 0:01:12.4]} 34. Kg1 {[%clk 0:00:04.6]}
34... Qe4 {[%clk 0:01:11.5]} 35. h3 {[%clk 0:00:01.6]} 35... g5 {[%clk
0:01:08.6]} 36. fxg5 {[%clk 0:00:02.3]} 36... Qxe5 {[%clk 0:01:07.8]} 37. Kh2
{[%clk 0:00:02.6]} 37... Kf7 {[%clk 0:00:58.7]} 38. g6+ {[%clk 0:00:02.3]} 38...
Kxg6 {[%clk 0:00:57.9]} 39. h4 {[%clk 0:00:02.9]} 39... Kh6 {[%clk 0:00:54.7]}
40. Kh3 {[%clk 0:00:03.1]} 40... Qe4 {[%clk 0:00:53.4]} 41. Kh2 {[%clk
0:00:02.2]} 41... e5 {[%clk 0:00:50.8]} 42. Qb5 {[%clk 0:00:01.4]} 42... e2
{[%clk 0:00:38.7]} 43. Qe8 {[%clk 0:00:02]} 43... f4 {[%clk 0:00:31.8]} 44. Qh8+
{[%clk 0:00:02.5]} 44... Kg6 {[%clk 0:00:30.6]} 45. Qg8+ {[%clk 0:00:02.9]}
45... Kf6 {[%clk 0:00:29.5]} 46. Qf8+ {[%clk 0:00:03.4]} 46... Ke6 {[%clk
0:00:29.5]} 47. Qe8+ {[%clk 0:00:03.7]} 47... Kd5 {[%clk 0:00:28.8]} 48. Qd7+
{[%clk 0:00:04.2]} 48... Kc5 {[%clk 0:00:28.7]} 49. Qc7+ {[%clk 0:00:04.8]}
49... Kd4 {[%clk 0:00:28.9]} 50. Qc4+ {[%clk 0:00:02.3]} 50... Ke3 {[%clk
0:00:29.1]} 51. Qc1+ {[%clk 0:00:02.9]} 51... Kf3 {[%clk 0:00:28]} 52. Qg1
{[%clk 0:00:03]} 52... e1=Q {[%clk 0:00:25.1]} 53. Qg2+ {[%clk 0:00:03.5]} 53...
Ke3 {[%clk 0:00:25.3]} 54. g4 {[%clk 0:00:04]} 54... Qxg2+ {[%clk 0:00:24.7]}
55. Kxg2 {[%clk 0:00:04.5]} 55... Qg3+ {[%clk 0:00:25.2]} 0-1

[Event "Early-Titled-Tuesday-Blitz-November-28-2023"]
[Site "Chess.com"]
[Date "2023.11.28"]
[Round "5"]
[White "kunaevchess"]
[Black "dianamirza"]
[Result "1-0"]
[WhiteElo "2294"]
[BlackElo "1990"]
[TimeControl "180+1"]
[EndTime "8:58:28 PST"]
[Termination "kunaevchess won on time"]

1. e4 {[%clk 0:03:00.9]} 1... d5 {[%clk 0:02:57.9]} 2. exd5 {[%clk 0:03:00]}
2... Qxd5 {[%clk 0:02:58.8]} 3. Nc3 {[%clk 0:02:53.4]} 3... Qd8 {[%clk
0:02:59.7]} 4. d4 {[%clk 0:02:52]} 4... Nf6 {[%clk 0:02:57.8]} 5. Bc4 {[%clk
0:02:46.3]} 5... a6 {[%clk 0:02:40]} 6. Nge2 {[%clk 0:02:44.7]} 6... b5 {[%clk
0:02:35.8]} 7. Bb3 {[%clk 0:02:44.1]} 7... Bb7 {[%clk 0:02:35.2]} 8. O-O {[%clk
0:02:43.3]} 8... e6 {[%clk 0:02:28.4]} 9. Re1 {[%clk 0:02:43.2]} 9... Be7 {[%clk
0:02:27.1]} 10. Ng3 {[%clk 0:02:42.8]} 10... O-O {[%clk 0:02:26.6]} 11. Qd3
{[%clk 0:02:31.5]} 11... c5 {[%clk 0:02:20.5]} 12. dxc5 {[%clk 0:02:30.9]} 12...
Qxd3 {[%clk 0:02:18.6]} 13. cxd3 {[%clk 0:02:31.8]} 13... Bxc5 {[%clk
0:02:18.7]} 14. Be3 {[%clk 0:02:31.8]} 14... Nbd7 {[%clk 0:02:14.2]} 15. Rad1
{[%clk 0:02:29.5]} 15... Ng4 {[%clk 0:02:10.9]} 16. Bxc5 {[%clk 0:02:26.7]}
16... Nxc5 {[%clk 0:02:10]} 17. Bc2 {[%clk 0:02:26]} 17... Rac8 {[%clk
0:01:49.9]} 18. d4 {[%clk 0:02:24.4]} 18... Nd7 {[%clk 0:01:37]} 19. h3 {[%clk
0:02:18.7]} 19... Ngf6 {[%clk 0:01:36.7]} 20. Bb1 {[%clk 0:02:12]} 20... Nd5
{[%clk 0:01:34]} 21. Nce4 {[%clk 0:02:08.6]} 21... N7f6 {[%clk 0:01:30.7]} 22.
Nd6 {[%clk 0:02:06.7]} 22... Rc7 {[%clk 0:01:25.3]} 23. Nxb7 {[%clk 0:02:06.8]}
23... Rxb7 {[%clk 0:01:26.2]} 24. Rc1 {[%clk 0:01:59.4]} 24... Rc7 {[%clk
0:01:09.4]} 25. Ne4 {[%clk 0:01:44.9]} 25... Rfc8 {[%clk 0:01:04]} 26. Rxc7
{[%clk 0:01:38]} 26... Rxc7 {[%clk 0:00:55.6]} 27. Nc5 {[%clk 0:01:38.1]} 27...
Rc6 {[%clk 0:00:40.1]} 28. Bd3 {[%clk 0:01:29.3]} 28... g6 {[%clk 0:00:39.5]}
29. Rc1 {[%clk 0:01:28]} 29... Nf4 {[%clk 0:00:37.8]} 30. Bf1 {[%clk 0:01:27]}
30... Ne4 {[%clk 0:00:29.1]} 31. b4 {[%clk 0:01:18.3]} 31... Nd5 {[%clk
0:00:17.6]} 32. a3 {[%clk 0:01:13.9]} 32... Nec3 {[%clk 0:00:16.9]} 33. g3
{[%clk 0:00:44.4]} 33... Na4 {[%clk 0:00:13.3]} 34. Bd3 {[%clk 0:00:40.6]} 34...
Nab6 {[%clk 0:00:13.1]} 35. Rc2 {[%clk 0:00:35.9]} 35... Nc8 {[%clk 0:00:13]}
36. Nxa6 {[%clk 0:00:35.3]} 36... Rxc2 {[%clk 0:00:08.3]} 37. Bxc2 {[%clk
0:00:34.8]} 37... Nd6 {[%clk 0:00:08.1]} 38. Bd3 {[%clk 0:00:30.3]} 38... Nc4
{[%clk 0:00:07.6]} 39. Bxc4 {[%clk 0:00:27.6]} 39... bxc4 {[%clk 0:00:07.8]} 40.
Nc5 {[%clk 0:00:27.8]} 40... c3 {[%clk 0:00:07.8]} 41. Nd3 {[%clk 0:00:27]}
41... Nb6 {[%clk 0:00:04.9]} 42. Kf1 {[%clk 0:00:25.1]} 42... Nc4 {[%clk
0:00:02.8]} 43. a4 {[%clk 0:00:23.9]} 43... Nb2 {[%clk 0:00:02.4]} 44. Ke2
{[%clk 0:00:21.9]} 44... Nxa4 {[%clk 0:00:02.3]} 45. b5 {[%clk 0:00:20]} 45...
Nb6 {[%clk 0:00:02.6]} 46. Nc5 {[%clk 0:00:19.4]} 46... Nd5 {[%clk 0:00:02.2]}
47. Kd3 {[%clk 0:00:19]} 47... Kf8 {[%clk 0:00:02.3]} 48. f4 {[%clk 0:00:18.4]}
48... Ke7 {[%clk 0:00:02.6]} 49. Ne4 {[%clk 0:00:18.2]} 49... Kd7 {[%clk
0:00:02]} 50. Nxc3 {[%clk 0:00:18]} 50... Nb4+ {[%clk 0:00:01.8]} 51. Kc4 {[%clk
0:00:17.6]} 1-0

[Event "Early-Titled-Tuesday-Blitz-November-28-2023"]
[Site "Chess.com"]
[Date "2023.11.28"]
[Round "5"]
[White "Chessdude1987"]
[Black "Gyulamiryan-koryun"]
[Result "0-1"]
[WhiteElo "2317"]
[BlackElo "1929"]
[TimeControl "180+1"]
[EndTime "8:58:30 PST"]
[Termination "Gyulamiryan-koryun won on time"]

1. e4 {[%clk 0:03:00.9]} 1... e5 {[%clk 0:02:58.5]} 2. Nf3 {[%clk 0:02:59.3]}
2... Nc6 {[%clk 0:02:57.7]} 3. d4 {[%clk 0:02:58]} 3... exd4 {[%clk 0:02:56.7]}
4. Nxd4 {[%clk 0:02:58.2]} 4... Bc5 {[%clk 0:02:55.9]} 5. Nxc6 {[%clk
0:02:57.8]} 5... Qf6 {[%clk 0:02:55]} 6. Qd2 {[%clk 0:02:58]} 6... dxc6 {[%clk
0:02:54.3]} 7. Nc3 {[%clk 0:02:58.1]} 7... Bd7 {[%clk 0:02:46.4]} 8. Na4 {[%clk
0:02:57.8]} 8... Be7 {[%clk 0:02:38.8]} 9. Bd3 {[%clk 0:02:53.2]} 9... O-O-O
{[%clk 0:02:38]} 10. Qe2 {[%clk 0:02:39]} 10... c5 {[%clk 0:02:32.9]} 11. Nc3
{[%clk 0:02:37]} 11... c6 {[%clk 0:02:27.5]} 12. O-O {[%clk 0:02:21.1]} 12... g5
{[%clk 0:02:26.5]} 13. e5 {[%clk 0:02:12]} 13... Qe6 {[%clk 0:02:20.6]} 14. Bc4
{[%clk 0:02:05.9]} 14... Qf5 {[%clk 0:02:20.3]} 15. f4 {[%clk 0:02:04.9]} 15...
g4 {[%clk 0:02:13.8]} 16. Ne4 {[%clk 0:01:59]} 16... Be6 {[%clk 0:02:11.4]} 17.
Ng3 {[%clk 0:01:51.1]} 17... Bxc4 {[%clk 0:02:00.2]} 18. Qxc4 {[%clk 0:01:49.4]}
18... Qe6 {[%clk 0:02:00.3]} 19. Qe2 {[%clk 0:01:46.2]} 19... f5 {[%clk
0:01:49.4]} 20. Be3 {[%clk 0:01:37.4]} 20... h5 {[%clk 0:01:47.6]} 21. Rfe1
{[%clk 0:01:32.3]} 21... h4 {[%clk 0:01:41]} 22. Nf1 {[%clk 0:01:32.4]} 22...
Nh6 {[%clk 0:01:32.9]} 23. a3 {[%clk 0:01:32.3]} 23... Rdg8 {[%clk 0:01:18.9]}
24. c4 {[%clk 0:01:30.3]} 24... g3 {[%clk 0:00:58.2]} 25. h3 {[%clk 0:01:30.2]}
25... Ng4 {[%clk 0:00:57.9]} 26. Reb1 {[%clk 0:01:20.2]} 26... Nxe3 {[%clk
0:00:51.8]} 27. Nxe3 {[%clk 0:01:17.7]} 27... Qh6 {[%clk 0:00:47.5]} 28. Qf3
{[%clk 0:01:14.4]} 28... Rd8 {[%clk 0:00:46]} 29. Nxf5 {[%clk 0:01:09.9]} 29...
Qf8 {[%clk 0:00:44.9]} 30. Ne3 {[%clk 0:01:03.9]} 30... Rd3 {[%clk 0:00:43.1]}
31. Rd1 {[%clk 0:01:02]} 31... Qd8 {[%clk 0:00:34.3]} 32. Qe4 {[%clk 0:00:43.6]}
32... Rd2 {[%clk 0:00:31.5]} 33. f5 {[%clk 0:00:26.7]} 33... Bg5 {[%clk
0:00:26.1]} 34. Rxd2 {[%clk 0:00:16.7]} 34... Qxd2 {[%clk 0:00:23.9]} 35. Ng4
{[%clk 0:00:16.7]} 35... Kd8 {[%clk 0:00:20.4]} 36. Rf1 {[%clk 0:00:14.4]} 36...
Re8 {[%clk 0:00:17.4]} 37. f6 {[%clk 0:00:13.9]} 37... Qd4+ {[%clk 0:00:15]} 38.
Qxd4+ {[%clk 0:00:13.5]} 38... cxd4 {[%clk 0:00:15.2]} 39. f7 {[%clk 0:00:13.3]}
39... Rf8 {[%clk 0:00:15.5]} 40. Rf5 {[%clk 0:00:11]} 40... Be3+ {[%clk
0:00:14.3]} 41. Kf1 {[%clk 0:00:10.1]} 41... Ke7 {[%clk 0:00:13.8]} 42. Nf6
{[%clk 0:00:04.8]} 42... Ke6 {[%clk 0:00:13.2]} 43. Rf3 {[%clk 0:00:03.8]} 43...
Bc1 {[%clk 0:00:12.7]} 44. Ke2 {[%clk 0:00:03.6]} 44... Bxb2 {[%clk 0:00:12.2]}
45. Kd3 {[%clk 0:00:03.3]} 45... Bxa3 {[%clk 0:00:10.1]} 46. Ke4 {[%clk
0:00:02.1]} 46... Be7 {[%clk 0:00:07.1]} 0-1

[Event "Early-Titled-Tuesday-Blitz-November-28-2023"]
[Site "Chess.com"]
[Date "2023.11.28"]
[Round "5"]
[White "Chessmissile07"]
[Black "AljoschaFeuerstack"]
[Result "1-0"]
[WhiteElo "2862"]
[BlackElo "2648"]
[TimeControl "180+1"]
[EndTime "8:58:31 PST"]
[Termination "Chessmissile07 won on time"]

1. a3 {[%clk 0:03:00.9]} 1... d5 {[%clk 0:02:58.9]} 2. d4 {[%clk 0:03:00.9]}
2... Nf6 {[%clk 0:02:58.4]} 3. Nf3 {[%clk 0:03:00.6]} 3... Bf5 {[%clk
0:02:58.1]} 4. e3 {[%clk 0:02:58.1]} 4... e6 {[%clk 0:02:58.3]} 5. c4 {[%clk
0:02:58.4]} 5... c5 {[%clk 0:02:49.8]} 6. Nc3 {[%clk 0:02:55.5]} 6... Nc6 {[%clk
0:02:27]} 7. cxd5 {[%clk 0:02:54.8]} 7... Nxd5 {[%clk 0:02:26.2]} 8. Bc4 {[%clk
0:02:38.8]} 8... Nxc3 {[%clk 0:02:18.1]} 9. bxc3 {[%clk 0:02:38.5]} 9... Be7
{[%clk 0:02:18.2]} 10. O-O {[%clk 0:02:38.1]} 10... O-O {[%clk 0:02:18]} 11. Re1
{[%clk 0:02:36.9]} 11... Rc8 {[%clk 0:02:05.9]} 12. e4 {[%clk 0:02:23]} 12...
Bg4 {[%clk 0:02:05.6]} 13. d5 {[%clk 0:02:23.1]} 13... Bxf3 {[%clk 0:02:01.9]}
14. Qxf3 {[%clk 0:02:14.9]} 14... Ne5 {[%clk 0:02:02.1]} 15. Qe2 {[%clk
0:02:15.4]} 15... Nxc4 {[%clk 0:02:01.4]} 16. Qxc4 {[%clk 0:02:15.3]} 16... exd5
{[%clk 0:02:00.8]} 17. exd5 {[%clk 0:02:15.1]} 17... Bd6 {[%clk 0:01:53.1]} 18.
a4 {[%clk 0:02:04.6]} 18... Qd7 {[%clk 0:01:37.8]} 19. Qb5 {[%clk 0:01:56.2]}
19... Qf5 {[%clk 0:01:09.5]} 20. Qxb7 {[%clk 0:01:43.8]} 20... Rc7 {[%clk
0:01:09.5]} 21. Qb3 {[%clk 0:01:34.4]} 21... c4 {[%clk 0:01:09.7]} 22. Qd1
{[%clk 0:01:28.6]} 22... Rc5 {[%clk 0:01:10.3]} 23. Qd4 {[%clk 0:01:15.1]} 23...
Qxd5 {[%clk 0:00:55.3]} 24. Be3 {[%clk 0:01:12.5]} 24... Qxd4 {[%clk 0:00:38.8]}
25. Bxd4 {[%clk 0:01:13.4]} 25... Ra5 {[%clk 0:00:38.1]} 26. Reb1 {[%clk
0:00:57.7]} 26... Rb8 {[%clk 0:00:34.3]} 27. Rxb8+ {[%clk 0:00:41.3]} 27... Bxb8
{[%clk 0:00:35.2]} 28. g3 {[%clk 0:00:35.5]} 28... Bd6 {[%clk 0:00:32.4]} 29.
Rb1 {[%clk 0:00:32.9]} 29... Rxa4 {[%clk 0:00:29.5]} 30. Rb7 {[%clk 0:00:33.2]}
30... f6 {[%clk 0:00:19.3]} 31. f4 {[%clk 0:00:26.3]} 31... a5 {[%clk
0:00:16.6]} 32. Rd7 {[%clk 0:00:24.8]} 32... Bf8 {[%clk 0:00:16.6]} 33. h4
{[%clk 0:00:20.3]} 33... Ra1+ {[%clk 0:00:16.9]} 34. Kf2 {[%clk 0:00:20]} 34...
a4 {[%clk 0:00:17.8]} 35. Rc7 {[%clk 0:00:18.5]} 35... a3 {[%clk 0:00:17.6]} 36.
Kg2 {[%clk 0:00:16]} 36... Ra2+ {[%clk 0:00:12.4]} 37. Kf3 {[%clk 0:00:11.6]}
37... Ra1 {[%clk 0:00:11.1]} 38. Kg4 {[%clk 0:00:08.2]} 38... a2 {[%clk
0:00:08]} 39. Ra7 {[%clk 0:00:08.2]} 39... h6 {[%clk 0:00:06]} 40. h5 {[%clk
0:00:07.8]} 40... Kh8 {[%clk 0:00:05.4]} 41. Kf5 {[%clk 0:00:08]} 41... Kg8
{[%clk 0:00:05.6]} 42. g4 {[%clk 0:00:06.6]} 42... Kh8 {[%clk 0:00:04.3]} 43.
Ra8 {[%clk 0:00:06.7]} 43... Kg8 {[%clk 0:00:04.7]} 44. Bc5 {[%clk 0:00:05.6]}
44... Rb1 {[%clk 0:00:01.2]} 45. Kg6 {[%clk 0:00:02.8]} 1-0